bitfinex/quotes_ETHUSD_20260131
["timestamp","ask_amount","ask_price","bid_price","bid_amount"]
[1769832571489,2.42975329,2698.7,2698.3,0.0011]
[1769832571791,0.001,2698.7,2698.3,0.0011]
[1769832571960,0.001,2698.7,2698.3,2.49034191]
[1769832572283,3.35491409,2699.4,2698.4,2.7382761]
[1769832572865,2.42875329,2699.3,2698.5,0.92644061]
[1769832575259,2.42875329,2699.3,2698.6,2.48924191]
[1769832575460,2.42875329,2699.3,2698.6,3.22630067]
[1769832575975,2.42875329,2699.8,2698.6,3.22630067]
[1769832576176,2.42875329,2699.8,2698.7,2.48924191]
[1769832582894,2.53322959,2699.6,2698.7,3.41561049]
[1769832583097,2.53322959,2699.6,2698.8,0.41526693]
[1769832583992,2.53322959,2699.6,2698.8,2.90660462]
[1769832583993,0.001,2699.6,2698.8,2.90660462]
[1769832585600,0.001,2699.6,2698.9,0.9263033]
[1769832588705,2.53322959,2699.6,2698.9,0.9263033]
[1769832588910,2.53222959,2699.5,2698.9,0.75382016]
[1769832589079,2.53222959,2699.5,2698.7,0.92635631]
[1769832589987,2.53222959,2699.5,2698.6,3.70561451]
[1769832590186,2.53222959,2699.4,2698.8,0.92633528]
[1769832590775,2.53222959,2699.4,2698.7,0.92637195]
[1769832591805,3.45929781,2699.6,2698.8,2.49133769]
[1769832592915,3.45929781,2699.6,2698.8,3.4176502]
[1769832593281,0.92706822,2699.6,2698.8,3.4176502]
[1769832593582,2.53222959,2699.5,2698.9,0.34176502]
[1769832593796,2.53222959,2699.5,2698.8,0.92631251]
[1769832594499,0.001,2699.2,2698.8,0.92631251]
[1769832595716,0.001,2699.2,2698.7,3.70548271]
[1769832596010,0.001,2699.2,2698.8,2.49133769]
[1769832599700,0.001,2699.2,2698.9,0.9263033]
[1769832600028,0.001,2699.2,2699.0,0.3417641]
[1769832604332,0.001,2699.6,2699.1,2.49133769]
[1769832604534,1.2916265,2700.4,2699.2,2.49133769]
[1769832604715,3.82385609,2700.4,2699.2,2.49133769]
[1769832604915,3.82385609,2700.4,2699.4,2.49133769]
[1769832605115,3.82385609,2700.4,2699.5,3.41743511]
[1769832605313,3.82385609,2700.4,2699.6,2.49133769]
[1769832605635,0.36583335,2700.4,2699.6,2.49133769]
[1769832607632,0.36583335,2700.4,2699.7,0.92602881]
[1769832607944,0.36583335,2700.4,2699.8,0.46302761]
[1769832611510,0.36583335,2700.4,2699.8,2.95013058]
[1769832613753,0.36583335,2700.4,2699.9,2.48710297]
[1769832617346,0.001,2700.2,2699.9,2.48710297]
[1769832618643,0.001,2700.2,2699.9,3.41306071]
[1769832618844,0.001,2700.2,2700.0,0.38760883]
[1769832623229,0.001,2700.2,2699.8,1.3889991]
[1769832623427,0.001,2700.2,2699.8,3.87610207]
[1769832624861,0.001,2700.2,2699.8,1.3889991]
[1769832625162,0.001,2700.2,2699.9,2.48710297]
[1769832625356,0.001,2700.2,2699.9,3.41306255]
[1769832625564,0.001,2700.2,2700.0,0.38760902]
[1769832626868,0.001,2700.2,2699.8,1.38900031]
[1769832626869,2.48481214,2700.2,2699.8,0.46302761]
[1769832627163,2.48481214,2700.2,2699.6,0.92606094]
[1769832627370,2.48481214,2700.2,2699.5,0.92607212]
[1769832627666,2.48481214,2700.2,2699.6,0.92605978]
[1769832628365,2.48481214,2700.2,2699.6,1.38910807]
[1769832628961,0.001,2700.0,2699.6,1.38910807]
[1769832629766,0.001,2700.0,2699.6,0.46304829]
[1769832636168,0.001,2700.0,2699.6,1.3891107]
[1769832639083,0.001,2700.0,2699.6,0.46304829]
[1769832640874,0.001,2700.0,2699.8,0.0011]
[1769832657288,0.001,2700.0,2699.6,0.46304829]
[1769832657289,2.56014962,2700.0,2699.5,0.0011]
[1769832657504,0.24958121,2700.0,2699.5,0.0011]
[1769832657787,0.001,2700.2,2699.6,0.92605655]
[1769832658085,0.001,2700.2,2699.7,2.31918907]
[1769832664495,0.001,2700.2,2699.9,0.0011]
[1769832664792,0.001,2700.0,2699.9,0.0011]
[1769832673389,3.05151537,2700.5,2699.9,0.23312891]
[1769832673589,3.05151537,2700.5,2699.9,0.0011]
[1769832677823,2.37682188,2700.4,2699.6,0.0011]
[1769832678191,2.37682188,2700.2,2699.5,0.0011]
[1769832678519,2.37682188,2700.0,2699.5,0.0011]
[1769832683025,3.30274837,2700.0,2699.5,0.0011]
[1769832690709,0.001,2699.8,2699.5,0.0011]
[1769832692752,2.37782188,2699.8,2699.0,3.21402697]
[1769832693747,2.37782188,2699.8,2699.1,0.92623403]
[1769832693947,2.37782188,2699.8,2699.2,0.32140248]
[1769832696649,0.001,2699.8,2699.3,2.31741649]
[1769832700750,0.001,2699.8,2699.2,0.32140248]
[1769832700929,0.001,2699.8,2699.1,0.92621335]
[1769832701451,0.001,2699.8,2699.1,3.21504112]
[1769832702356,0.001,2699.8,2699.5,0.0011]
[1769832702845,0.001,2699.6,2699.5,0.0011]
[1769832703943,0.001,2699.6,2699.3,0.0011]
[1769832708461,0.001,2699.6,2699.3,2.51892055]
[1769832711542,0.001,2699.6,2699.3,0.23009278]
[1769832711740,0.001,2699.6,2699.3,0.0011]
[1769832716067,0.001,2699.6,2699.5,0.0011]
[1769832729392,0.001,2699.6,2699.3,0.0011]
[1769832729579,2.4101636,2699.5,2698.6,0.0011]
[1769832729789,2.74388627,2699.4,2698.6,0.0011]
[1769832730093,2.4101636,2699.4,2698.6,0.0011]
[1769832731488,2.4101636,2699.1,2698.6,0.0011]
[1769832732067,2.4101636,2699.1,2698.5,0.0011]
[1769832734571,2.4101636,2698.9,2698.5,0.0011]
[1769832734900,0.24101636,2698.8,2698.5,0.0011]
[1769832737609,1.1673807,2698.8,2698.5,0.0011]
[1769832739410,1.1673807,2698.8,2698.7,0.0011]
[1769832739610,1.1673807,2698.8,2698.5,0.0011]
[1769832739812,1.1673807,2698.8,2698.3,0.0011]
[1769832743318,0.72827698,2698.7,2698.3,2.51543265]
[1769832743517,3.70527958,2699.6,2698.5,2.51433265]
[1769832743687,0.92612298,2699.5,2698.5,2.51433265]
[1769832744018,0.92612298,2699.5,2698.7,2.51433265]
[1769832746120,0.001,2699.6,2698.7,2.51433265]
[1769832750643,0.001,2699.6,2698.8,2.51433265]
[1769832751417,0.001,2699.4,2698.8,2.51433265]
[1769832751619,0.001,2699.4,2698.9,3.40813199]
[1769832752698,0.001,2699.4,2698.9,2.51433265]
[1769832760139,9.2022528,2700.3,2698.9,2.51433265]
[1769832760140,0.01117672,2700.1,2699.6,2.32388623]
[1769832760361,2.46568633,2701.0,2699.7,2.32388623]
[1769832760521,2.46568633,2701.0,2699.6,5.49890907]
[1769832760522,2.46568633,2701.0,2700.1,2.32388623]
[1769832761734,2.46568633,2701.0,2699.8,0.79345625]
[1769832762040,2.46568633,2701.0,2699.9,3.24984645]
[1769832762234,2.46568633,2701.0,2700.0,2.32388623]
[1769832762429,2.80481002,2700.9,2700.0,2.32388623]
[1769832763545,0.001,2700.8,2700.0,2.32388623]
[1769832764468,0.001,2700.8,2700.1,0.92589163]
[1769832769028,0.001,2700.8,2700.1,2.32388623]
[1769832771256,0.001,2700.8,2700.2,0.92585734]
[1769832771445,0.001,2700.8,2700.3,0.69531729]
[1769832772847,0.001,2700.8,2700.3,3.01920352]
[1769832773449,0.001,2700.8,2700.4,0.92578877]
[1769832774147,0.001,2700.8,2700.2,3.70339868]
[1769832774148,2.46668633,2700.8,2700.2,0.92583635]
[1769832775762,0.001,2700.6,2700.0,0.92592592]
[1769832776060,0.001,2700.6,2700.0,1.2365425]
[1769832779957,0.001,2700.6,2700.0,6.73545157]
[1769832780155,0.001,2700.8,2700.1,2.32388623]
[1769832781542,2.46668633,2700.8,2700.1,2.32388623]
[1769832781744,2.46668633,2700.8,2700.2,0.90593378]
[1769832783064,2.46668633,2700.8,2700.3,0.92582305]
[1769832783655,0.001,2700.8,2700.3,0.92582305]
[1769832787665,0.001,2700.8,2700.0,0.31061658]
[1769832787666,2.56291517,2700.8,2700.0,0.31061658]
[1769832787965,2.56291517,2700.8,2699.9,0.92593278]
[1769832788165,2.56191517,2700.5,2699.9,0.92593278]
[1769832791170,2.56191517,2700.5,2699.6,0.92606312]
[1769832792765,2.56191517,2700.5,2699.6,6.42497219]
[1769832792973,2.56191517,2700.5,2699.7,0.01117672]
[1769832793178,2.56191517,2700.5,2699.8,0.9002104]
[1769832793354,2.56191517,2700.5,2699.9,0.92596022]
[1769832799679,2.56191517,2700.5,2700.1,0.0011]
[1769832802990,0.001,2700.6,2700.1,0.0011]
[1769832805183,2.56291517,2700.6,2700.1,0.0011]
[1769832807555,3.48863762,2700.6,2700.1,0.0011]
[1769832811892,2.56191517,2700.5,2700.1,0.0011]
[1769832812485,2.56191517,2700.5,2699.4,0.92612263]
[1769832812792,2.56191517,2700.5,2699.3,0.92614648]
[1769832813174,2.56191517,2700.5,2700.0,0.0011]
[1769832813495,2.56191517,2700.3,2699.3,0.92614648]
[1769832813698,2.56191517,2700.1,2699.2,0.92620035]
[1769832815504,2.56191517,2700.0,2699.0,0.0011]
[1769832815664,2.56191517,2699.8,2699.0,0.0011]
[1769832817076,0.34877725,2700.0,2699.6,2.49927071]
[1769832817291,2.50844655,2700.4,2699.6,0.79963207]
[1769832817798,3.43426647,2700.4,2699.6,0.92606312]
[1769832818001,3.43426647,2700.4,2699.5,8.92006382]
[1769832819108,3.43426647,2700.4,2699.6,2.36456347]
[1769832819407,3.43426647,2700.4,2699.6,3.61378316]
[1769832821179,0.92581992,2700.4,2699.7,2.36456347]
[1769832822910,0.92577786,2700.5,2699.7,2.36456347]
[1769832823300,0.92577786,2700.5,2699.7,3.29058734]
[1769832823502,0.92577786,2700.5,2699.7,4.66471165]
[1769832824711,0.001,2700.6,2699.8,2.36456347]
[1769832824884,0.001,2700.6,2699.9,2.36456347]
[1769832825083,0.001,2700.6,2700.1,2.36456347]
[1769832825725,0.001,2700.2,2700.1,2.36456347]
[1769832825912,0.001,2700.6,2700.1,2.36456347]
[1769832832022,0.001,2700.6,2700.0,0.78616134]
[1769832837230,0.001,2700.6,2700.2,0.0011]
[1769832837611,0.001,2700.4,2700.2,0.0011]
[1769832841301,2.38659159,2700.4,2699.8,0.92596986]
[1769832841607,2.38659159,2700.4,2699.6,0.92605855]
[1769832841608,2.62535075,2700.4,2699.6,0.92605855]
[1769832841804,2.62535075,2700.4,2699.5,0.9260743]
[1769832842130,2.62535075,2700.4,2699.2,0.92727552]
[1769832842427,2.38559159,2700.2,2699.3,0.9261656]
[1769832843932,1.18837878,2700.3,2699.3,2.36456347]
[1769832844102,0.9258437,2700.3,2699.3,2.36456347]
[1769832844408,0.001,2700.4,2699.6,2.36456347]
[1769832846236,0.001,2700.4,2699.8,2.36456347]
[1769832846833,2.3064301,2701.6,2700.3,2.28717997]
[1769832847046,2.3064301,2701.5,2700.3,2.28717997]
[1769832848601,2.3064301,2701.3,2700.4,0.92578877]
[1769832849829,2.3064301,2701.3,2700.4,3.21296874]
[1769832850611,3.23193083,2701.3,2700.5,2.28717997]
[1769832850817,3.23293083,2701.3,2700.5,2.88622389]
[1769832855650,3.23293083,2701.3,2700.5,3.8119631]
[1769832858753,2.3074301,2701.3,2700.5,1.52478313]
[1769832858962,2.3074301,2701.3,2700.6,2.28717997]
[1769832860047,0.001,2701.3,2700.6,2.28717997]
[1769832860248,0.001,2701.3,2700.8,2.28717997]
[1769832860452,0.001,2701.3,2700.9,0.92561738]
[1769832860824,0.001,2701.3,2700.9,3.21279735]
[1769832861028,0.13923009,2701.7,2701.0,2.28717997]
[1769832861250,0.13923009,2701.7,2701.1,0.32127973]
[1769832861455,3.37100534,2701.7,2701.1,0.32127973]
[1769832861760,3.37100534,2701.7,2700.9,0.92561738]
[1769832862261,2.44566019,2701.7,2700.9,3.21279735]
[1769832864128,0.001,2701.5,2700.9,3.21279735]
[1769832864458,0.001,2701.5,2701.0,0.69153756]
[1769832866762,0.001,2701.5,2701.0,1.6170984]
[1769832876646,0.001,2701.5,2701.1,0.0011]
[1769832883278,2.46212932,2701.5,2701.1,0.0011]
[1769832883487,2.46212932,2701.5,2700.5,0.0011]
[1769832883778,2.46112932,2701.3,2700.5,0.92683355]
[1769832884690,2.46112932,2701.3,2700.5,0.0011]
[1769832885969,0.001,2701.5,2700.9,2.37398311]
[1769832886290,3.38642601,2701.9,2701.0,0.78634408]
[1769832886291,2.46112932,2701.8,2701.0,0.78634408]
[1769832886996,3.38645219,2701.8,2701.0,1.71190479]
[1769832887198,2.46112932,2701.7,2701.1,0.41529923]
[1769832889662,0.92532287,2701.8,2701.1,1.34084601]
[1769832889862,2.46112932,2701.7,2701.1,1.34084601]
[1769832890062,2.46112932,2701.7,2701.3,0.0011]
[1769832893677,2.46112932,2701.9,2701.3,0.0011]
[1769832895489,2.70724225,2701.9,2701.3,0.0011]
[1769832896999,2.46112932,2701.7,2701.3,0.0011]
[1769832900704,2.46112932,2701.6,2701.0,0.0011]
[1769832901068,2.46112932,2701.6,2700.5,0.92683322]
[1769832901069,2.46112932,2701.6,2700.5,0.92684525]
[1769832901273,2.46112932,2701.4,2700.5,0.0011]
[1769832901770,2.46112932,2701.2,2700.5,0.0011]
[1769832902175,2.46112932,2701.2,2700.3,0.0011]
[1769832904309,2.46112932,2701.0,2700.3,0.0011]
[1769832904612,3.0750906,2701.0,2700.3,0.0011]
[1769832906833,3.0750906,2701.0,2700.3,2.25869072]
[1769832906983,0.92556942,2701.1,2700.3,2.25869072]
[1769832907504,3.22328896,2701.1,2700.3,2.25869072]
[1769832908205,3.7015746,2701.6,2700.7,2.25759072]
[1769832908206,2.29771954,2701.6,2700.7,2.25759072]
[1769832908377,2.29771954,2701.6,2700.8,3.03229556]
[1769832908578,2.29771954,2701.6,2700.8,2.25759072]
[1769832908988,3.22310639,2701.6,2700.8,3.18322507]
[1769832909807,2.29771954,2701.6,2700.8,3.18322507]
[1769832913406,0.92536197,2701.7,2700.8,3.18322507]
[1769832913407,2.29771954,2701.9,2700.8,3.18322507]
[1769832913586,0.32229601,2701.8,2700.9,2.25759072]
[1769832913986,2.62001555,2701.8,2700.9,2.25759072]
[1769832915715,2.62001555,2701.8,2700.5,0.0011]
[1769832915716,2.29771954,2701.3,2700.5,0.0011]
[1769832917719,2.29771954,2701.1,2700.5,0.0011]
[1769832917901,2.29771954,2701.0,2700.5,0.0011]
[1769832920592,2.29771954,2700.9,2700.5,0.0011]
[1769832921722,0.92556989,2701.1,2700.5,0.0011]
[1769832921723,2.29771954,2701.1,2700.5,0.0011]
[1769832921923,0.001,2701.4,2700.5,2.25869072]
[1769832922218,0.001,2701.4,2700.6,2.48345979]
[1769832922794,0.001,2701.4,2700.7,3.18327665]
[1769832927723,0.001,2701.2,2700.7,3.18327665]
[1769832928513,0.001,2701.2,2700.6,1.15156368]
[1769832928712,0.001,2701.2,2700.7,0.71132232]
[1769832930625,2.29771954,2701.1,2700.5,0.0011]
[1769832932129,2.29771954,2701.0,2700.3,0.0011]
[1769832932833,2.29771954,2700.8,2700.3,0.0011]
[1769832933125,2.29771954,2700.6,2700.3,0.0011]
[1769832934798,2.29771954,2700.5,2700.3,0.0011]
[1769832935835,2.29771954,2700.5,2700.2,0.0011]
[1769832936840,3.39376955,2700.4,2700.2,0.0011]
[1769832937004,4.10344221,2700.4,2700.2,0.0011]
[1769832938852,2.4521091,2701.0,2700.2,0.0011]
[1769832939030,3.37864443,2701.2,2700.2,2.31027299]
[1769832939334,3.37864443,2701.2,2700.4,2.30917299]
[1769832945855,0.92653533,2701.2,2700.4,2.30917299]
[1769832946047,0.92653533,2701.2,2700.4,0.92578201]
[1769832946342,0.92653533,2701.2,2700.5,2.30917299]
[1769832947218,2.4521091,2701.1,2700.3,1.15682777]
[1769832947420,2.4521091,2701.0,2700.3,1.15682777]
[1769832948233,0.92653533,2701.2,2700.3,1.15682777]
[1769832948445,0.92653533,2701.2,2700.4,3.2349607]
[1769832948618,0.92653533,2701.2,2700.5,2.30917299]
[1769832949117,3.37864443,2701.2,2700.3,3.46600268]
[1769832949319,4.0868052,2701.2,2700.3,3.46600268]
[1769832951850,0.001,2701.0,2700.3,3.46600268]
[1769832952349,0.001,2701.0,2700.4,2.30917299]
[1769832958460,0.001,2701.0,2700.4,3.23495517]
[1769832960755,0.001,2701.0,2700.5,2.30917299]
[1769832960959,0.001,2701.0,2700.6,0.32349552]
[1769832963670,0.001,2700.8,2700.6,0.32349552]
[1769832978089,0.001,2700.8,2700.5,0.92574219]
[1769832978891,0.001,2700.8,2700.4,3.70314199]
[1769832982694,0.001,2700.8,2700.4,0.92578877]
[1769832986663,0.001,2700.6,2700.4,0.92578877]
[1769832986864,0.001,2700.8,2700.4,0.92578877]
[1769832987064,0.001,2700.8,2700.5,0.71516191]
[1769832988898,0.001,2700.8,2700.5,1.64089945]
[1769832990264,0.001,2700.8,2700.5,0.71516191]
[1769832990470,2.31593982,2700.8,2700.5,0.71516191]
[1769832992099,0.001,2701.0,2700.6,2.29155312]
[1769832992297,0.001,2701.2,2700.7,2.68479917]
[1769832993299,0.001,2701.2,2700.7,0.39324605]
[1769832994093,0.001,2701.2,2700.7,1.31890267]
[1769832998819,0.001,2701.0,2700.7,1.31890267]
[1769832999029,0.001,2701.2,2700.7,3.6663237]
[1769832999232,0.001,2701.2,2700.8,2.84959884]
[1769833000221,2.4689162,2701.9,2701.0,2.34742103]
[1769833000394,2.4689162,2701.9,2700.9,0.92561738]
[1769833000395,2.4689162,2701.9,2701.1,2.67472487]
[1769833000591,2.4689162,2701.9,2701.1,2.34742103]
[1769833000986,2.4689162,2701.9,2700.9,3.27303841]
[1769833010313,2.4689162,2701.8,2700.8,0.50217781]
[1769833010640,2.80833307,2701.8,2700.9,0.0011]
[1769833010839,2.4689162,2701.6,2700.9,0.0011]
[1769833011041,2.74984951,2701.6,2700.9,0.0011]
[1769833013950,2.4689162,2701.5,2700.9,0.0011]
[1769833017768,3.39527842,2701.7,2700.9,0.0011]
[1769833019362,3.39527842,2701.7,2700.9,0.92671738]
[1769833023430,3.39527842,2701.7,2701.1,0.0011]
[1769833023630,4.10491922,2701.7,2701.1,0.0011]
[1769833023853,0.001,2701.5,2701.1,0.0011]
[1769833036259,0.001,2701.5,2701.1,3.43724571]
[1769833036468,0.92526678,2702.0,2701.2,2.51059686]
[1769833036654,0.92522741,2702.1,2701.2,2.51059686]
[1769833036852,3.3360829,2702.1,2701.3,0.34482457]
[1769833037878,2.41085549,2702.0,2701.3,0.34482457]
[1769833038763,2.41085549,2701.9,2701.3,1.27028586]
[1769833038943,2.41085549,2701.9,2701.3,0.92656129]
[1769833040068,2.41085549,2701.9,2701.3,0.0011]
[1769833040568,0.92522748,2702.1,2701.3,0.0011]
[1769833040770,2.41085549,2702.1,2701.3,0.0011]
[1769833042275,2.41085549,2702.1,2701.3,3.43717718]
[1769833042479,2.41085549,2702.1,2701.4,0.71391725]
[1769833043182,3.33606234,2702.1,2701.4,0.71391725]
[1769833045089,2.41085549,2702.4,2701.4,4.14995654]
[1769833045745,3.70025535,2702.6,2701.4,4.14995654]
[1769833045746,2.41085549,2702.2,2701.4,0.71391725]
[1769833046064,2.41085549,2702.2,2701.3,0.0011]
[1769833048087,0.92520632,2702.1,2701.3,0.0011]
[1769833048291,2.41085549,2702.0,2701.3,0.0011]
[1769833049182,2.41085549,2702.0,2701.5,0.0011]
[1769833049350,2.41085549,2701.8,2701.5,0.0011]
[1769833049546,0.001,2702.0,2701.6,2.51059686]
[1769833049960,2.41085549,2702.5,2701.6,2.51059686]
[1769833050165,2.41085549,2702.5,2701.7,0.9253433]
[1769833050370,2.41085549,2702.5,2701.8,0.71374179]
[1769833050693,2.41085549,2702.7,2701.9,2.51059686]
[1769833050852,2.41085549,2702.9,2701.9,2.51059686]
[1769833051065,2.41085549,2702.9,2702.0,3.38215257]
[1769833051687,3.69948504,2703.1,2702.0,3.38215257]
[1769833051688,2.41085549,2703.1,2702.1,2.51059686]
[1769833051967,2.41085549,2703.1,2701.8,0.71374179]
[1769833051968,2.41085549,2703.1,2702.2,0.33821526]
[1769833052195,2.41085549,2703.1,2701.9,2.51059686]
[1769833052382,2.41085549,2702.9,2702.0,3.43583742]
[1769833053698,0.92489826,2703.0,2702.1,2.51059686]
[1769833053996,0.30881553,2703.2,2702.2,2.51059686]
[1769833054901,1.23364543,2703.2,2702.4,2.51059686]
[1769833055395,2.41085549,2703.1,2702.3,0.92513784]
[1769833056998,2.42430189,2702.9,2702.2,0.9251522]
[1769833057175,2.42430189,2702.9,2702.2,0.39566179]
[1769833058676,3.34924292,2702.9,2702.2,0.39566179]
[1769833058902,2.30926931,2702.8,2702.2,0.39566179]
[1769833060796,2.30926931,2702.8,2702.2,1.32083119]
[1769833061492,0.001,2702.7,2702.2,1.32083119]
[1769833067509,0.001,2702.7,2702.2,0.39566179]
[1769833069817,2.31026931,2702.7,2702.2,0.39566179]
[1769833070021,2.31026931,2702.7,2702.1,0.92518571]
[1769833071118,2.31026931,2702.7,2702.0,0.92521505]
[1769833071317,2.31026931,2702.7,2701.8,0.71374179]
[1769833071486,2.31026931,2702.7,2701.7,0.92531595]
[1769833072290,0.92503515,2702.6,2701.7,0.92531595]
[1769833072512,2.30926931,2702.5,2701.7,0.92531595]
[1769833075217,2.30926931,2702.5,2701.5,0.0011]
[1769833075218,2.30926931,2702.3,2701.5,0.0011]
[1769833075526,2.30926931,2702.3,2701.6,1.15941801]
[1769833082656,2.30926931,2702.2,2701.6,0.2340441]
[1769833082854,2.30926931,2702.2,2701.5,0.0011]
[1769833084425,2.30926931,2702.2,2701.8,0.0011]
[1769833085046,2.30926931,2702.0,2701.8,0.0011]
[1769833085359,2.63271687,2701.9,2701.8,0.0011]
[1769833086258,2.63271687,2701.9,2701.5,0.0011]
[1769833087763,3.2505137,2701.8,2701.5,0.0011]
[1769833088062,2.32520465,2701.8,2701.5,0.0011]
[1769833088233,1.24874503,2701.9,2701.5,0.0011]
[1769833088433,3.57394968,2701.9,2701.5,0.0011]
[1769833088660,0.96001458,2701.8,2701.5,0.0011]
[1769833097168,0.96001458,2701.8,2701.7,0.0011]
[1769833101886,4.21052828,2701.8,2701.7,0.0011]
[1769833102085,3.2505137,2701.8,2701.5,0.0011]
[1769833103859,2.32520465,2701.7,2701.1,0.0011]
[1769833104592,2.32520465,2701.7,2700.9,0.0011]
[1769833104593,2.32520465,2701.5,2700.9,0.0011]
[1769833104751,2.32520465,2701.3,2700.9,0.0011]
[1769833105393,2.32520465,2702.0,2701.0,2.34036087]
[1769833106521,3.25046072,2702.0,2701.1,0.92554885]
[1769833106817,3.25046072,2702.0,2701.2,2.34036087]
[1769833107019,3.94558417,2702.0,2701.2,2.34036087]
[1769833109309,3.94558417,2702.0,2701.2,3.26696973]
[1769833109610,0.001,2701.8,2701.2,3.26696973]
[1769833113713,0.001,2701.8,2701.2,2.34146087]
[1769833113920,0.001,2701.8,2701.2,0.0011]
[1769833115390,0.001,2701.8,2701.2,0.69812881]
[1769833122302,0.001,2701.6,2701.2,0.69812881]
[1769833127549,0.001,2701.6,2701.2,1.62363821]
[1769833134055,0.001,2701.6,2701.2,4.01975525]
[1769833135555,0.001,2701.6,2701.2,1.62363821]
[1769833136650,2.22418568,2701.6,2701.0,0.0011]
[1769833143277,0.001,2701.6,2701.0,0.0011]
[1769833143471,0.001,2701.6,2701.0,2.39721704]
[1769833145528,0.001,2701.6,2700.6,0.0011]
[1769833145529,2.22318568,2701.2,2700.6,0.0011]
[1769833145726,2.22318568,2701.2,2700.4,0.0011]
[1769833145727,2.22318568,2700.9,2700.2,0.0011]
[1769833148151,2.24155139,2700.7,2700.2,0.0011]
[1769833150571,3.16723921,2700.7,2700.2,0.0011]
[1769833150743,2.24155139,2700.6,2700.2,0.0011]
[1769833150946,2.55827531,2700.6,2700.2,0.0011]
[1769833153163,2.24155139,2700.5,2700.2,0.0011]
[1769833154068,3.16731166,2700.5,2700.2,0.0011]
[1769833154364,2.24155139,2700.4,2700.0,0.0011]
[1769833156066,3.16734254,2700.4,2700.0,0.0011]
[1769833156262,0.31673425,2700.3,2700.0,0.0011]
[1769833157166,2.55828564,2700.3,2700.0,0.0011]
[1769833157369,2.55828564,2700.3,2700.2,0.0011]
[1769833165374,3.48410869,2700.3,2700.2,0.0011]
[1769833165584,3.48410869,2700.3,2699.6,0.0011]
[1769833165585,2.24155139,2700.2,2699.6,0.0011]
[1769833165878,2.24155139,2700.1,2699.6,0.0011]
[1769833169593,2.24155139,2700.1,2699.8,0.0011]
[1769833171296,1.6445953,2700.2,2699.8,0.0011]
[1769833172197,3.88614669,2700.2,2699.8,0.0011]
[1769833172378,0.42028809,2700.1,2699.8,0.0011]
[1769833175174,0.92584827,2700.3,2699.8,0.0011]
[1769833179005,2.14565003,2700.2,2699.6,0.0011]
[1769833179570,2.14565003,2700.0,2699.6,0.0011]
[1769833181922,2.14565003,2699.8,2699.6,0.0011]
[1769833182123,0.30716102,2699.7,2699.6,0.0011]
[1769833184908,1.23318983,2699.7,2699.6,0.0011]
[1769833185223,3.37883986,2699.7,2699.6,0.0011]
[1769833185719,3.37883986,2699.7,2699.2,0.0011]
[1769833189604,2.14565003,2699.6,2699.2,0.0011]
[1769833189811,2.48353402,2699.5,2699.2,0.0011]
[1769833190016,2.14565003,2699.5,2699.2,0.0011]
[1769833190408,2.14565003,2699.5,2699.0,0.0011]
[1769833192411,2.14565003,2699.3,2699.0,0.0011]
[1769833193618,2.14565003,2699.3,2699.1,0.0011]
[1769833193931,0.30717818,2699.2,2699.1,0.0011]
[1769833194935,1.23339151,2699.2,2698.9,0.0011]
[1769833202638,0.92609742,2699.6,2698.9,2.19689902]
[1769833202931,5.81621815,2700.3,2698.9,2.19689902]
[1769833202932,0.92592592,2700.0,2698.9,2.19689902]
[1769833203918,3.07157595,2700.0,2698.9,2.19689902]
[1769833204111,0.67762487,2699.9,2698.9,2.41669892]
[1769833205237,0.92599451,2699.8,2698.9,3.3429682]
[1769833205413,0.92599451,2699.8,2699.0,2.19579902]
[1769833206040,0.92599451,2699.8,2699.1,2.19689902]
[1769833206234,0.92699451,2699.8,2699.1,2.19689902]
[1769833206535,0.92699451,2699.8,2699.1,2.53130584]
[1769833209341,0.92699451,2699.8,2699.1,3.4575403]
[1769833211351,0.92699451,2699.8,2699.1,2.53130584]
[1769833212051,3.18390658,2699.8,2699.1,0.0011]
[1769833212533,2.25691207,2699.7,2699.1,0.0011]
[1769833212731,2.25691207,2699.7,2698.9,0.0011]
[1769833219049,2.25691207,2699.5,2698.9,0.0011]
[1769833220969,0.92613173,2699.4,2698.9,0.0011]
[1769833221130,1.61497998,2699.4,2698.9,0.0011]
[1769833225166,3.87189205,2699.4,2698.9,0.0011]
[1769833225884,2.25691207,2699.3,2698.9,0.0011]
[1769833226550,2.25691207,2699.3,2698.5,0.0011]
[1769833227142,2.25691207,2699.1,2698.5,0.0011]
[1769833227467,0.31831124,2699.0,2698.5,0.0011]
[1769833227672,2.57522331,2699.0,2698.5,0.0011]
[1769833227871,2.25691207,2699.0,2698.5,0.0011]
[1769833229585,2.25691207,2698.8,2698.5,0.0011]
[1769833231072,2.25691207,2698.8,2698.2,0.0011]
[1769833231073,5.49534486,2698.8,2698.2,0.0011]
[1769833231382,2.25691207,2698.6,2698.2,0.0011]
[1769833231624,2.25691207,2698.4,2697.4,0.0011]
[1769833236527,2.25691207,2698.4,2697.1,2.14996956]
[1769833236528,2.25691207,2698.1,2697.1,2.14996956]
[1769833236675,2.10596027,2697.8,2697.0,2.23722371]
[1769833239009,0.92671535,2697.7,2697.0,2.23722371]
[1769833242211,2.13436668,2697.6,2696.7,2.11975512]
[1769833242380,0.21343667,2697.5,2696.7,2.11975512]
[1769833242710,2.13436668,2697.8,2696.7,2.11975512]
[1769833242910,2.13436668,2697.8,2697.2,0.0011]
[1769833243285,0.001,2697.6,2697.2,0.0011]
[1769833246720,2.13536668,2697.6,2697.2,0.0011]
[1769833246923,0.3062082,2697.5,2697.2,0.0011]
[1769833249219,0.92775999,2697.6,2697.2,0.0011]
[1769833250920,3.06212667,2697.6,2697.2,0.0011]
[1769833253295,0.92775999,2697.6,2697.2,0.0011]
[1769833254212,0.001,2697.6,2697.2,0.0011]
[1769833255412,0.001,2697.6,2697.4,0.0011]
[1769833255617,0.77522569,2698.0,2697.3,2.11975512]
[1769833255815,0.92640628,2698.6,2697.4,2.11975512]
[1769833256123,0.92640628,2698.6,2697.3,5.50692908]
[1769833256124,0.92639092,2698.7,2697.6,2.11975512]
[1769833257538,0.2718823,2699.1,2698.0,2.11975512]
[1769833257843,0.2718823,2699.1,2698.2,2.11975512]
[1769833258532,1.19812548,2699.1,2698.2,2.11975512]
[1769833259937,1.19812548,2699.1,2698.3,2.11975512]
[1769833260151,0.2718823,2699.1,2698.3,2.11975512]
[1769833260326,0.2718823,2699.1,2698.5,2.11975512]
[1769833260524,3.33248375,2699.1,2698.4,0.30462709]
[1769833260833,2.13436668,2699.0,2698.2,0.92651577]